bitfinex/quotes_ETHUSD_20250406
["timestamp","ask_amount","ask_price","bid_price","bid_amount"]
[1743960344090,8.82718182,1719.1,1718.7,10.70676]
[1743960344356,8.82718182,1719.1,1718.7,4.07276]
[1743960344357,14.51245182,1719.1,1718.7,4.07276]
[1743960344585,4.07215,1719.0,1718.7,4.07276]
[1743960344757,4.07215,1719.0,1718.6,6.0539354]
[1743960344953,8.82769182,1718.9,1718.5,4.07329]
[1743960345160,1.6132,1718.7,1718.4,45.93654]
[1743960345949,1.6132,1718.7,1718.4,45.9364]
[1743960346448,6.32963182,1718.9,1718.6,4.07297]
[1743960346787,6.32963182,1718.9,1718.4,41.863]
[1743960346788,6.32963182,1718.9,1718.7,4.0727]
[1743960346974,6.32963182,1718.9,1718.7,4.47997]
[1743960347302,6.32963182,1718.9,1718.7,0.40727]
[1743960348079,6.32963182,1718.9,1718.7,4.48009]
[1743960349074,6.32963182,1718.9,1718.7,0.40727]
[1743960349282,6.32963182,1718.9,1718.6,4.07291]
[1743960349498,10.40200182,1718.9,1718.6,4.07291]
[1743960349784,10.40206182,1718.9,1718.6,4.07307]
[1743960349986,10.70448,1719.3,1719.0,4.07192]
[1743960349987,1.5744,1719.2,1719.0,4.07192]
[1743960350142,1.5744,1719.2,1718.9,4.07235]
[1743960350346,1.5744,1719.2,1718.9,4.479585]
[1743960350553,1.5744,1719.2,1718.9,0.407235]
[1743960350796,4.62204,1719.1,1718.7,4.07282]
[1743960351093,4.07224,1719.0,1718.6,10.70506]
[1743960351289,4.75523182,1719.0,1718.7,4.07282]
[1743960352060,8.82745182,1719.0,1718.6,10.70497]
[1743960352264,8.82745182,1719.0,1718.6,11.775467]
[1743960352456,8.82745182,1719.0,1718.6,15.848387]
[1743960353089,4.75523182,1719.0,1718.7,4.07265]
[1743960353291,0.55,1718.9,1718.8,4.07245]
[1743960353497,4.75523182,1719.0,1718.9,4.07237]
[1743960353994,4.75523182,1719.0,1718.8,4.07245]
[1743960354567,4.75523182,1719.0,1718.9,4.07237]
[1743960355893,8.24915863,1719.3,1718.9,8.14474]
[1743960356096,8.24915863,1719.3,1719.0,4.0721]
[1743960356481,8.24915863,1719.3,1719.0,4.07202]
[1743960357574,12.32057863,1719.3,1718.9,4.07236]
[1743960358199,2.1632,1718.7,1718.4,45.93641]
[1743960358371,2.1632,1718.7,1718.4,49.45848038]
[1743960358566,2.1632,1718.7,1718.4,45.38507038]
[1743960358567,6.23615,1718.7,1718.4,45.38507038]
[1743960358800,4.07318,1718.6,1718.4,41.863]
[1743960359181,6.23615,1718.7,1718.4,41.863]
[1743960359888,4.07316,1718.6,1718.4,41.863]
[1743960361029,2.1632,1718.7,1718.4,41.863]
[1743960361405,6.23616,1718.7,1718.4,41.863]
[1743960361714,10.99139182,1718.7,1718.4,41.863]
[1743960361918,4.07308,1718.6,1718.4,41.863]
[1743960362115,4.07331,1718.5,1718.4,41.863]
[1743960362418,4.62331,1718.5,1718.4,41.863]
[1743960362883,0.55,1718.5,1718.4,41.863]
[1743960363934,6.36843182,1718.7,1718.4,50.530156]
[1743960364079,6.36843182,1718.7,1718.5,4.07323]
[1743960364410,4.07319,1718.6,1718.4,46.456676]
[1743960364611,0.55,1718.5,1718.4,41.863]
[1743960364823,9.73043681,1718.5,1718.4,41.863]
[1743960365008,4.07371,1718.4,1718.0,5.62418]
[1743960365615,0.55,1718.3,1718.0,4.07448]
[1743960365818,4.62379,1718.3,1718.0,0.814919]
[1743960366316,0.55,1718.4,1718.0,4.889329]
[1743960366613,3.49392681,1718.5,1718.4,4.07355]
[1743960366778,3.49392681,1718.5,1718.4,0.407355]
[1743960367375,0.55,1718.4,1718.0,4.889299]
[1743960367573,3.49392681,1718.4,1718.2,4.07392]
[1743960368017,3.49392681,1718.4,1718.1,4.07412]
[1743960368310,3.49392681,1718.4,1718.2,4.07388]
[1743960368517,3.49392681,1718.4,1718.3,4.481178]
[1743960368887,3.49392681,1718.4,1718.3,6.030878]
[1743960369687,3.49392681,1718.4,1718.3,6.08906753]
[1743960369888,3.49392681,1718.4,1718.3,9.08906753]
[1743960370306,3.49392681,1718.4,1718.3,9.030878]
[1743960370487,3.49392681,1718.6,1718.5,7.07331]
[1743960370692,3.49392681,1718.6,1718.5,14.814987]
[1743960370901,3.49392681,1718.6,1718.5,11.814987]
[1743960372133,3.49392681,1718.6,1718.5,7.741677]
[1743960372279,3.49392681,1718.6,1718.5,6.627]
[1743960372789,3.49392681,1718.6,1718.2,45.94785]
[1743960372984,2.1438,1718.5,1718.2,41.874]
[1743960373226,0.55,1718.3,1718.2,41.874]
[1743960373430,4.62379,1718.3,1718.2,41.874]
[1743960373782,0.55,1718.1,1717.7,5.57941]
[1743960374087,0.55,1718.1,1717.8,0.557941]
[1743960374088,0.55,1718.0,1717.8,0.557941]
[1743960374283,0.55,1717.8,1717.6,41.874]
[1743960374478,4.75523182,1717.9,1717.6,41.874]
[1743960374725,4.75523182,1717.9,1717.7,4.07504]
[1743960375093,4.75523182,1717.9,1717.7,8.1501]
[1743960375304,4.75523182,1717.9,1717.7,4.07504]
[1743960375515,4.75523182,1717.9,1717.8,4.07497]
[1743960375817,4.75523182,1717.9,1717.7,4.07504]
[1743960376168,4.75523182,1717.9,1717.8,4.07497]
[1743960376315,4.75523182,1718.3,1718.1,4.07407]
[1743960376662,4.75523182,1718.3,1718.2,0.407407]
[1743960376862,4.75523182,1718.3,1718.0,5.59477]
[1743960377161,8.82917182,1718.3,1717.9,4.07461]
[1743960377361,0.55,1718.2,1717.9,4.07461]
[1743960377733,0.55,1718.2,1717.9,4.07463]
[1743960378723,0.55,1718.2,1717.9,9.02235137]
[1743960379040,0.55,1718.2,1717.9,4.94772137]
[1743960379258,0.55,1718.2,1717.9,4.889517]
[1743960379857,4.75523182,1718.3,1718.1,4.07416]
[1743960380047,4.75523182,1718.3,1718.2,4.07403]
[1743960380867,4.75523182,1718.3,1718.2,4.888849]
[1743960381579,1.5314,1718.9,1718.2,4.94693369]
[1743960381724,5.6038,1718.9,1718.4,5.59384]
[1743960381925,9.67635,1718.9,1718.4,5.59384]
[1743960382150,5.6038,1718.9,1718.4,6.560453]
[1743960382358,5.6038,1718.9,1718.5,8.1463]
[1743960382854,4.07269,1718.8,1718.4,6.560603]
[1743960383563,0.55,1718.8,1718.4,6.560463]
[1743960383722,1.5314,1718.9,1718.5,4.07315]
[1743960384060,5.60378,1718.9,1718.4,6.560593]
[1743960384267,4.07265,1718.8,1718.4,10.633983]
[1743960384571,4.0727,1718.8,1718.5,1.0633983]
[1743960384870,0.55,1718.7,1718.4,4.07339]
[1743960385149,4.07318,1718.6,1718.2,48.289929]
[1743960385450,4.07379,1718.3,1718.2,41.881]
[1743960385656,4.07403,1718.2,1717.8,4.07491]
[1743960385825,4.6246,1718.0,1717.6,45.95343]
[1743960386152,0.55,1717.8,1717.6,46.880909]
[1743960386519,4.62509,1717.8,1717.6,46.880909]
[1743960386720,1.5616,1717.7,1717.6,41.878]
[1743960386941,6.18681,1717.7,1717.6,41.878]
[1743960387338,6.18681,1717.7,1717.3,10.6981]
[1743960387556,6.18681,1717.7,1717.4,1.06981]
[1743960387753,2.1116,1717.7,1717.4,1.06981]
[1743960388058,2.1116,1717.7,1717.4,5.14564]
[1743960388557,0.55,1717.6,1717.1,4.0765]
[1743960388721,6.31683182,1717.7,1717.0,41.883]
[1743960388926,6.31683182,1717.7,1717.4,4.07592]
[1743960389363,0.55,1717.6,1717.2,4.07639]
[1743960389658,8.70136,1717.6,1717.1,4.07662]
[1743960389856,4.07573,1717.5,1717.1,4.1883]
[1743960390029,4.62602,1717.4,1717.1,4.1883]
[1743960390224,4.07619,1717.3,1717.1,4.1883]
[1743960391675,4.62602,1717.4,1717.0,41.883]
[1743960391881,6.31683182,1717.7,1717.1,4.07662]
[1743960392068,6.31683182,1717.7,1717.3,4.07611]
[1743960392374,4.75523182,1717.7,1717.5,4.0756]
[1743960392683,4.75523182,1717.7,1717.4,4.07592]
[1743960392886,8.83045182,1717.7,1717.5,0.407592]
[1743960393084,8.83045182,1717.7,1717.3,5.64735]
[1743960393085,0.55,1717.5,1717.2,6.622]
[1743960393239,4.62571,1717.5,1717.2,6.622]
[1743960393839,4.07594,1717.4,1717.2,6.622]
[1743960394069,4.07594,1717.4,1717.0,48.95982]
[1743960394273,8.70158,1717.5,1717.1,8.972612]
[1743960394458,4.07596,1717.4,1717.0,45.95987]
[1743960395149,8.15206,1717.4,1717.0,45.95987]
[1743960395481,4.07596,1717.4,1717.0,45.95987]
[1743960395991,5.30523182,1717.5,1717.3,4.07613]
[1743960396160,4.75523182,1717.5,1717.3,4.07613]
[1743960396348,4.75523182,1717.5,1717.3,0.815238]
[1743960396551,4.75523182,1717.5,1717.1,8.15316]
[1743960396882,4.75523182,1717.5,1717.2,4.07632]
[1743960397184,8.83093182,1717.5,1717.1,4.07653]
[1743960397583,4.75523182,1717.5,1717.2,4.07639]
[1743960397741,4.75523182,1717.5,1717.2,4.891682]
[1743960397941,4.75523182,1717.5,1717.2,0.815292]
[1743960398447,4.75523182,1717.5,1717.2,4.94982963]
[1743960398851,8.83102182,1717.5,1717.2,0.815292]
[1743960399066,4.07601,1717.4,1717.0,52.58087]
[1743960399383,4.07601,1717.4,1717.0,41.883]
[1743960399589,4.07617,1717.3,1717.0,41.883]
[1743960400385,4.07601,1717.4,1717.0,45.95986]
[1743960400582,4.07601,1717.4,1717.0,51.56696982]
[1743960400789,4.75523182,1717.5,1717.1,4.13477273]
[1743960400980,8.83093182,1717.5,1717.1,4.07654]
[1743960401171,4.75523182,1717.5,1717.1,4.07649]
[1743960401372,4.75523182,1717.5,1717.2,4.483969]
[1743960401571,4.75523182,1717.5,1717.2,4.483889]
[1743960401872,4.75523182,1717.5,1717.2,0.407649]
[1743960402072,4.07605,1717.4,1717.0,51.56695982]
[1743960402384,4.07616,1717.3,1717.0,47.49010982]
[1743960403589,4.07605,1717.4,1717.0,51.56695982]
[1743960403791,4.07617,1717.3,1717.0,41.883]
[1743960404657,8.15251,1717.3,1717.0,41.883]
[1743960404990,4.07709,1717.0,1716.6,1.5942]
[1743960405151,5.61674,1716.9,1716.5,8.15592]
[1743960405553,5.61674,1716.9,1716.6,4.07782]
[1743960405764,1.5396,1716.9,1716.6,4.07782]
[1743960405978,1.5396,1716.9,1716.7,4.07743]
[1743960406185,4.75523182,1717.0,1716.8,4.07713]
[1743960406386,4.75523182,1717.0,1716.8,5.67133]
[1743960406575,4.75523182,1717.0,1716.9,4.07711]
[1743960408675,5.61555,1717.4,1717.0,4.07675]
[1743960408879,1.5396,1717.4,1716.8,1.5942]
[1743960409068,4.07652,1717.2,1716.8,5.67144]
[1743960409276,4.07652,1717.2,1716.8,4.07724]
[1743960410190,1.5396,1717.4,1716.9,0.05823888]
[1743960410487,8.83094182,1717.5,1717.1,4.07655]
[1743960410713,4.07605,1717.4,1717.0,5.67105]
[1743960410871,4.07605,1717.4,1716.9,4.07709]
[1743960411053,1.5396,1717.2,1716.8,10.52394]
[1743960411257,9.69266,1717.2,1716.8,10.52394]
[1743960411475,5.61606,1717.2,1716.8,8.92974]
[1743960411992,6.29633182,1717.5,1717.3,4.07612]
[1743960412206,4.75523182,1717.5,1717.3,4.07612]
[1743960412392,8.83100182,1717.5,1717.1,4.0766]
[1743960412564,4.75523182,1717.5,1717.3,8.15219]
[1743960412888,4.75523182,1717.5,1717.2,4.07631]
[1743960413090,4.75523182,1717.5,1717.3,4.07615]
[1743960413512,4.75523182,1717.5,1717.4,4.07592]
[1743960413905,4.75523182,1717.5,1717.3,4.07615]
[1743960414110,4.75523182,1717.5,1717.3,8.15216]
[1743960414409,4.75523182,1717.5,1717.4,4.07592]
[1743960414732,4.75523182,1717.5,1717.3,4.891262]
[1743960415014,6.29633182,1718.0,1717.8,4.07496]
[1743960415190,4.75523182,1718.0,1717.8,4.07496]
[1743960415517,4.75523182,1718.0,1717.8,4.889866]
[1743960415687,4.75523182,1718.0,1717.9,4.07474]
[1743960415890,1.5411,1718.3,1718.0,4.07429]
[1743960416094,5.61493,1718.3,1717.9,5.61493]
[1743960416294,5.61493,1718.3,1717.8,10.69097]
[1743960416618,4.07447,1718.1,1717.8,6.616]
[1743960416807,4.07459,1718.0,1717.6,4.07527]
[1743960417118,4.07475,1717.9,1717.6,0.971374]
[1743960417317,10.44713182,1718.0,1717.5,5.63831]
[1743960417514,14.52181182,1718.0,1717.6,4.07536]
[1743960417814,4.07512,1717.8,1717.4,10.69189]
[1743960418013,4.07512,1717.8,1717.3,0.815252]
[1743960418014,4.07512,1717.8,1717.3,4.891412]
[1743960418188,9.76842,1717.6,1717.3,0.815252]
[1743960418390,9.76842,1717.6,1717.2,4.07639]
[1743960418391,10.44809182,1717.6,1717.2,4.07639]
[1743960418582,4.07573,1717.5,1717.0,10.69081]
[1743960418782,4.07573,1717.5,1717.1,5.145711]
[1743960418978,4.07573,1717.5,1717.1,9.222211]
[1743960419414,8.1516,1717.5,1717.1,5.145581]
[1743960419616,4.07594,1717.4,1717.1,1.069081]
[1743960419917,1.6173,1717.2,1716.9,41.907]
[1743960420490,5.69382,1717.2,1716.9,41.907]
[1743960420824,4.07699,1717.0,1716.6,4.07781]
[1743960421032,8.83222182,1717.0,1716.6,9.02930401]
[1743960421331,1.5529,1716.8,1716.6,0.815586]
[1743960421528,1.5529,1716.8,1716.4,4.07817]
[1743960421529,5.63037,1716.8,1716.4,4.07817]
[1743960422000,5.63037,1716.8,1716.3,41.901]
[1743960422001,4.07782,1716.6,1716.3,41.901]
[1743960422209,8.83285182,1716.7,1716.3,45.97953]
[1743960422529,4.75523182,1716.7,1716.3,45.97939]
[1743960422713,4.75523182,1716.7,1716.4,4.597939]
[1743960422917,8.83285182,1716.7,1716.4,4.597939]
[1743960423225,0.55,1716.6,1716.3,41.901]
[1743960423440,8.83285182,1716.7,1716.3,41.901]
[1743960423595,8.83285182,1716.7,1716.3,45.97935]
[1743960423596,4.75523182,1716.7,1716.3,45.97935]
[1743960423940,5.63114,1716.5,1716.1,6.613]
[1743960424087,4.07833,1716.4,1716.1,6.613]
[1743960424287,4.07833,1716.4,1715.8,10.5593865]
[1743960424288,4.62866,1716.3,1715.8,10.5593865]
[1743960424531,4.62866,1716.3,1715.8,15.80612515]
[1743960424532,12.91310182,1716.2,1715.8,15.80612515]
[1743960424712,4.75523182,1716.2,1715.9,4.07946]
[1743960424918,4.75523182,1716.2,1715.8,11.72652515]
[1743960425115,1.5529,1716.1,1715.8,15.80623515]
[1743960425802,5.63191,1716.1,1715.8,11.72652515]
[1743960426327,1.5529,1716.1,1715.8,11.72652515]
[1743960426527,5.63191,1716.1,1715.8,11.72652515]
[1743960426838,8.83458182,1716.0,1715.8,6.4797865]
[1743960427251,4.75523182,1716.0,1715.8,6.4797865]
[1743960427543,4.62949,1715.9,1715.8,6.4797865]
[1743960427729,9.38472182,1715.9,1715.8,6.4797865]
[1743960427909,4.75523182,1715.9,1715.8,6.4797865]
[1743960428109,10.38762182,1715.9,1715.8,6.4797865]
[1743960428311,10.93762182,1715.9,1715.8,6.4797865]
[1743960428730,15.60947043,1715.9,1715.8,6.4797865]
[1743960428929,0.55,1715.8,1715.5,1.03161819]
[1743960429274,4.08164,1715.0,1714.5,1.5751]
[1743960429588,0.55,1714.4,1713.2,0.0128]
[1743960429860,4.08544,1713.4,1713.2,0.0128]
[1743960430073,6.18834,1713.4,1713.2,0.0128]
[1743960430256,12.18834,1713.4,1713.2,0.0128]
[1743960430467,0.55,1712.8,1712.0,26.42585]
[1743960430625,0.55,1713.3,1712.2,0.06839201]
[1743960430626,0.7913,1713.1,1712.2,0.06839201]
[1743960430827,0.7913,1713.1,1712.7,4.08693]
[1743960431080,0.7913,1713.1,1712.2,4.68184861]
[1743960431081,6.0,1713.3,1713.1,4.08603]
[1743960431386,0.7913,1712.9,1712.2,0.01]
[1743960431544,6.7913,1712.9,1712.5,4.08738]
[1743960431743,6.0,1712.9,1712.2,0.01]
[1743960432095,8.42936,1712.3,1712.2,0.01]
[1743960432232,13.87936,1712.3,1712.2,0.01]
[1743960432563,4.08918,1711.9,1711.2,0.25]
[1743960432780,10.67184861,1711.8,1711.2,0.25]
[1743960433087,6.0,1711.8,1711.4,4.09014]
[1743960433283,6.0,1712.4,1711.9,4.08888]
[1743960433426,0.55,1712.4,1711.6,48.625]
[1743960433630,5.0368593,1712.1,1711.0,1.5e-06]
[1743960433987,5.0368593,1711.1,1708.7,0.09999625]
[1743960434191,63.51168115,1712.0,1707.7,0.30209049]
[1743960434192,0.30396662,1708.2,1707.7,0.30209049]
[1743960434386,5.0368593,1707.8,1707.7,0.25209049]
[1743960434533,4.0994,1707.6,1707.3,0.35901201]
[1743960434728,0.1,1707.2,1707.1,0.0125116]
[1743960434934,4.10172,1706.6,1706.5,8.61e-06]
[1743960435131,4.01126388,1706.4,1705.9,0.0407438]
[1743960435367,46.10857,1707.5,1705.9,0.0407438]
[1743960435368,6.0,1707.4,1705.9,0.0407438]
[1743960435528,11.0368593,1707.5,1706.0,10.269]
[1743960435729,9.0191,1707.4,1707.2,4.10027]
[1743960435959,0.30280392,1707.8,1706.3,10.453]
[1743960436183,0.7913,1708.0,1705.9,0.0407438]
[1743960436184,0.7913,1708.0,1705.9,0.66164964]
[1743960436474,0.1,1706.7,1705.6,4.10412]
[1743960436634,0.1,1706.6,1705.9,42.009]
[1743960436841,0.1,1705.8,1705.4,42.009]
[1743960437033,0.1,1705.9,1705.4,42.009]
[1743960437234,0.7913,1706.9,1705.4,42.009]
[1743960437235,0.1,1706.4,1705.5,13.903]
[1743960437466,0.1,1706.9,1705.5,13.903]
[1743960437781,0.1,1707.3,1706.2,1.5613]
[1743960437978,0.1,1707.5,1705.6,1.5613]
[1743960438134,0.7913,1707.4,1706.5,4.10184]
[1743960438328,0.7913,1707.4,1706.6,0.410184]
[1743960438562,0.7913,1707.4,1705.5,2.0]
[1743960438563,4.10162,1706.7,1705.5,2.0]
[1743960438768,0.1,1705.8,1704.4,0.01]
[1743960438970,15.1311,1705.7,1704.4,0.01]
[1743960439154,2.9691,1705.6,1704.4,0.01]
[1743960439468,4.10484,1705.3,1704.4,0.01]
[1743960439666,4.10677,1704.5,1704.4,0.01]
[1743960439841,0.7883,1704.4,1703.3,4.10965]
[1743960440167,15.7701,1704.3,1702.5,0.012]
[1743960440466,0.7883,1704.2,1702.5,0.012]
[1743960440665,4.10823,1703.9,1702.8,4.11087]
[1743960440887,4.10936,1703.5,1702.5,0.012]
[1743960441088,4.11135,1702.7,1702.0,3.66149244]
[1743960441234,4.11256,1702.1,1702.0,3.66149244]
[1743960441436,3.50722808,1701.8,1700.1,4.11732]
[1743960441675,3.50722808,1701.7,1700.4,7.16665749]
[1743960441837,3.50722808,1701.7,1700.2,4.11707]
[1743960441838,2.9691,1701.6,1700.2,4.11707]
[1743960442035,3.10773192,1701.5,1700.8,42.118]
[1743960442259,0.13863192,1701.5,1700.8,42.118]
[1743960442463,0.13863192,1701.5,1700.8,43.6793]
[1743960442779,6.0,1701.4,1700.0,36.22220684]
[1743960442945,4.11882,1699.6,1697.5,0.1]
[1743960443294,4.11882,1699.6,1696.7,0.01]
[1743960443295,7.80140168,1699.5,1696.7,0.01]
[1743960443597,0.1,1698.3,1695.5,4.12848]
[1743960443735,0.1,1695.5,1694.9,5.67412403]
[1743960443938,4.13052,1694.7,1692.7,1.60669452]
[1743960444140,7.16665749,1695.0,1690.6,0.0008]
[1743960444141,1.5613,1692.6,1690.6,0.0008]
[1743960444440,0.1,1691.9,1688.9,0.01]
[1743960444749,5.42693,1692.5,1687.0,0.025]
[1743960444750,0.1,1688.7,1687.0,0.025]
[1743960444950,7.23847395,1687.1,1685.5,0.04597796]
[1743960445299,43.352,1687.0,1685.0,2.7543027]
[1743960445606,0.71014814,1687.0,1684.7,0.1]
[1743960445887,0.71014814,1687.0,1683.2,3.0]
[1743960445888,0.1,1686.8,1683.3,4.15848]
[1743960446036,0.1,1686.8,1683.2,3.0]
[1743960446037,0.10640168,1686.7,1683.4,0.415848]
[1743960446378,2.31305959,1690.1,1686.2,1.5613]
[1743960446580,0.72091111,1690.5,1687.8,0.1]
[1743960446734,16.876,1692.8,1685.5,1.58299283]
[1743960446735,15.98,1690.4,1685.5,1.58299283]
[1743960446939,16.89528628,1690.3,1685.2,1.5613]
[1743960447140,4.1118,1691.1,1687.2,2.99523893]
[1743960447341,4.09162939,1691.1,1690.2,9.39569817]
[1743960447578,1.91317173,1692.3,1688.1,4.14667]
[1743960447790,0.1,1693.6,1692.0,4.13691]
[1743960447947,0.1,1694.1,1692.1,42.749691]
[1743960448142,62.331,1694.0,1692.9,4.13491]
[1743960448398,9.98,1693.9,1692.1,42.749691]
[1743960448693,6.47e-06,1694.6,1692.0,42.336]
[1743960448892,0.71042756,1695.6,1695.5,4.12857]
[1743960449172,16.0,1696.6,1694.1,1.5613]
[1743960449357,9.98,1697.8,1694.1,1.5613]
[1743960449560,4.12255,1698.0,1695.0,4.12966]
[1743960449736,0.1,1697.6,1694.1,1.66923763]
[1743960449938,0.1,1696.6,1694.2,0.10793126]
[1743960450190,4.12395,1697.4,1695.1,0.1]
[1743960450488,4.12395,1697.4,1693.1,43.9293]
[1743960450489,9.9609942,1697.3,1695.9,4.22757]
[1743960450781,4.11974,1699.2,1697.0,4.2248]
[1743960450988,4.12098,1698.7,1697.4,4.12391]
[1743960451277,4.12501,1697.0,1695.6,4.12831]
[1743960451483,4.12176,1698.3,1694.3,42.368]
[1743960451695,0.30474065,1696.9,1694.9,4.12988]
[1743960451835,0.30474065,1696.9,1695.1,5.891]
[1743960452037,9.95915875,1697.6,1695.1,6.63623]
[1743960452237,0.30468858,1697.9,1695.1,6.63623]
[1743960452576,9.95915875,1697.8,1695.1,6.63623]
[1743960452761,0.30468858,1697.9,1695.5,0.3142282]
[1743960453077,0.30468858,1697.9,1697.6,4.12336]
[1743960453238,4.1196,1699.2,1695.1,3.68607719]
[1743960453239,14.07793875,1699.6,1698.2,4.12189]
[1743960453436,4.11924,1699.4,1698.3,5.886]
[1743960453641,0.30408711,1698.4,1698.3,5.886]
[1743960453854,0.10640168,1699.3,1697.8,5.886]
[1743960454054,0.1,1699.1,1695.2,0.36860772]
[1743960454288,1.3411,1698.3,1695.1,4.12954]
[1743960454584,11.30025875,1698.3,1695.3,5.888]
[1743960454904,10.2634562,1698.2,1696.0,4.1272]
[1743960455092,4.12249,1698.0,1696.1,10.01793]
[1743960455243,11.09190605,1698.1,1696.1,5.891]
[1743960455441,4.12273,1697.9,1695.1,5.891]
[1743960455791,1.1327473,1698.1,1695.3,2.94329265]
[1743960455792,1.02634562,1698.1,1695.3,2.94329265]
[1743960456091,1.02634562,1698.1,1695.5,4.12857]
[1743960456294,14.08184875,1698.0,1695.6,5.891]
[1743960456591,1.02634562,1698.1,1693.8,4.13259]
[1743960456592,4.12444,1697.2,1693.8,4.13259]
[1743960456801,10.37160275,1697.1,1693.9,6.310259]
[1743960456970,1.3411,1697.5,1696.8,4.12533]
[1743960457205,4.12492,1697.0,1696.9,4.5499]
[1743960457482,4.12492,1697.0,1695.6,4.12817]
[1743960457483,4.12557,1696.8,1695.6,4.12817]
[1743960457641,10.98550437,1698.1,1695.1,2.96751248]
[1743960457976,1.20495212,1698.0,1695.2,48.58875125]
[1743960458180,0.10640168,1697.9,1696.7,4.12563]
[1743960458380,45.401,1697.8,1696.8,5.891]
[1743960458577,0.10640168,1697.7,1696.0,3.22531941]
[1743960458788,2.74393196,1697.7,1696.5,4.12597]
[1743960458989,2.74393196,1697.7,1696.8,4.12524]
[1743960459191,3.0,1697.6,1695.4,4.12881]
[1743960459409,0.40640168,1697.5,1697.1,4.12447]
[1743960459569,0.3,1697.5,1697.0,4.12489]
[1743960459774,42.405,1698.4,1696.3,3.0]
[1743960459963,42.405,1699.0,1697.3,4.12411]
[1743960460308,7.45e-06,1698.2,1697.2,42.405]
[1743960460508,46.52317,1699.8,1697.3,3.0]
[1743960460661,0.30377959,1699.5,1697.4,0.55]
[1743960461010,0.30377959,1699.5,1699.4,4.1191]
[1743960461213,42.405,1700.4,1699.8,4.11789]
[1743960461514,0.30357154,1700.3,1698.7,42.405]
[1743960461689,0.30357154,1700.3,1697.8,3.0]
[1743960461893,0.30357154,1700.3,1697.6,0.45525]
[1743960461894,42.405,1700.9,1700.2,4.11716]
[1743960462215,4.11785,1700.0,1697.6,0.45525]
[1743960462363,3.10640168,1699.9,1698.7,4.12057]
[1743960462566,4.11837,1699.7,1697.7,4.12322]
[1743960462780,0.55,1699.3,1698.4,4.12131]
[1743960462985,0.10640168,1699.6,1699.0,4.12003]
[1743960463313,0.10640168,1699.6,1697.9,3.0]
[1743960463596,0.30359771,1699.8,1699.1,8.23946]
[1743960463904,0.30359771,1699.8,1699.2,4.11953]
[1743960464080,4.11656,1700.5,1699.3,4.11932]
[1743960464402,4.11656,1700.5,1698.4,7.12152]
[1743960464403,0.30337182,1699.7,1697.0,4.12491]
[1743960464579,0.07371,1699.3,1698.5,4.12114]
[1743960464778,0.13253368,1699.3,1698.5,4.12116]
[1743960465114,0.13253368,1699.3,1698.7,4.12078]
[1743960465392,0.13253368,1699.3,1699.1,4.11977]
[1743960465580,0.13253368,1699.3,1698.1,3.55]
[1743960465581,0.13253368,1699.3,1699.2,4.11958]
[1743960466504,0.13253368,1699.3,1698.8,4.12032]
[1743960466674,0.13253368,1699.3,1699.0,4.11997]
[1743960467002,0.13253368,1699.3,1699.2,4.11958]
[1743960467304,0.13253368,1699.3,1697.5,1.5525]
[1743960467503,3.13253368,1699.3,1697.7,4.12322]
[1743960467689,4.12024,1699.0,1697.8,4.12291]
[1743960467890,0.55,1698.4,1696.9,4.12516]
[1743960468101,4.67095,1698.7,1697.6,4.12323]
[1743960468404,42.371,1698.9,1695.9,1.5525]
[1743960468405,4.6715,1698.5,1695.9,1.5525]
[1743960468568,4.12201,1698.2,1695.3,4.12906]
[1743960468768,4.12748,1696.0,1694.5,1.5525]
[1743960468968,0.55,1696.9,1695.7,4.12792]
[1743960469201,3.0,1698.4,1695.8,9.33818515]
[1743960469402,0.65640168,1698.2,1695.9,42.371]
[1743960469605,0.55,1698.0,1696.4,3.0]
[1743960469819,0.10640168,1698.1,1696.6,4.12567]
[1743960470017,0.467095,1698.6,1696.7,4.12542]
[1743960470223,4.12343,1697.7,1695.8,9.33818515]
[1743960470375,4.12343,1697.7,1695.7,1.5525]
[1743960470376,0.10640168,1697.7,1696.9,4.125]
[1743960470576,4.67355,1697.6,1696.6,4.12587]
[1743960470771,3.0,1697.4,1696.7,4.12552]
[1743960470973,0.10640168,1697.6,1695.9,4.1276]
[1743960471173,0.55,1697.8,1696.6,4.12579]
[1743960471411,4.12385,1697.5,1695.8,4.12784]
[1743960471587,5.02806,1697.8,1695.7,1.5525]
[1743960471802,0.355,1697.8,1697.2,4.12442]
[1743960472122,4.1213,1698.5,1697.7,4.12321]
[1743960472327,4.1213,1698.5,1696.8,4.12541]
[1743960472328,0.10640168,1698.4,1697.5,4.1237]
[1743960472617,0.10640168,1698.4,1697.3,4.12419]
[1743960472923,4.12005,1699.1,1698.1,4.12209]
[1743960473109,0.31325337,1699.2,1696.6,1.6098]
[1743960473318,1.5411,1700.2,1698.0,4.12249]
[1743960473624,1.5411,1700.2,1699.8,4.11804]
[1743960473835,1.5411,1700.2,1699.7,4.11817]
[1743960474133,1.5411,1700.2,1698.8,0.55]
[1743960474281,1.5411,1700.2,1699.3,4.11932]
[1743960474481,1.5411,1700.2,1698.5,9.33818515]
[1743960474482,4.1174,1700.1,1698.5,9.33818515]
[1743960474791,0.41174,1700.0,1699.3,4.11918]
[1743960474990,0.41174,1700.0,1699.1,4.11976]
[1743960475189,4.1174,1700.1,1698.2,3.0]
[1743960475435,3.0,1700.1,1698.2,4.12201]
[1743960475604,3.0,1699.7,1698.8,4.12045]
[1743960475805,4.62209975,1700.0,1698.6,4.12104]
[1743960476015,0.50429975,1700.0,1699.4,4.11895]
[1743960476188,0.4035865,1699.9,1699.5,4.11866]